fUSD/lending_fUSD_20250905
["ID","MTS","AMOUNT","RATE_DAILY","PERIOD"]
[383641155,1757057455627,-400.0,0.00025091,2]
[383641156,1757057455637,-402.01399905,0.00025091,2]
[383641157,1757057455646,-400.0,0.00025091,2]
[383641158,1757057455658,-400.0,0.00025091,2]
[383641159,1757057455667,-400.0,0.00025091,2]
[383641160,1757057455677,-400.0,0.00025091,2]
[383641161,1757057455687,-404.08850504,0.00025091,2]
[383641162,1757057455698,-402.93524788,0.00025091,2]
[383641163,1757057455708,-473.19829275,0.00025091,2]
[383641164,1757057455718,-400.0,0.00025091,2]
[383641165,1757057455727,-400.0,0.00025091,2]
[383641166,1757057455737,-401.22137943,0.00025091,2]
[383641167,1757057455747,-400.0,0.00025091,2]
[383641168,1757057455757,-400.0,0.00025091,2]
[383641169,1757057455767,-400.0,0.00025091,2]
[383641170,1757057455776,-400.0,0.00025091,2]
[383641171,1757057455786,-400.0,0.00025091,2]
[383641172,1757057455796,-462.01,0.00025091,2]
[383641173,1757057455806,-400.0,0.00025091,2]
[383641174,1757057455815,-400.0,0.00025091,2]
[383641175,1757057455825,-400.0,0.00025091,2]
[383641176,1757057455835,-400.0,0.00025091,2]
[383641177,1757057455845,-400.0,0.00025091,2]
[383641178,1757057455856,-400.0,0.00025091,2]
[383641179,1757057455865,-400.0,0.00025091,2]
[383641180,1757057455875,-400.0,0.00025091,2]
[383641181,1757057455885,-544.02352511,0.00025091,2]
[383641182,1757057455895,-400.0,0.00025091,2]
[383641183,1757057455908,-400.0,0.00025091,2]
[383641184,1757057455919,-500.0,0.00025091,2]
[383641185,1757057455929,-400.0,0.00025091,2]
[383641186,1757057455939,-400.0,0.00025091,2]
[383641187,1757057455949,-400.0,0.00025091,2]
[383641188,1757057455960,-400.0,0.00025091,2]
[383641189,1757057455969,-400.0,0.00025091,2]
[383641190,1757057455980,-400.0,0.00025091,2]
[383641191,1757057455990,-400.0,0.00025091,2]
[383641192,1757057456000,-400.0,0.00025091,2]
[383641193,1757057456010,-400.0,0.00025091,2]
[383641194,1757057456019,-537.05,0.00025091,2]
[383641195,1757057456029,-406.17768227,0.00025091,2]
[383641196,1757057456039,-400.0,0.00025091,2]
[383641197,1757057456048,-400.0,0.00025091,2]
[383641198,1757057456059,-400.0,0.00025091,2]
[383641199,1757057456069,-400.0,0.00025091,2]
[383641200,1757057456079,-400.0,0.00025091,2]
[383641201,1757057456089,-400.0,0.00025091,2]
[383641202,1757057456099,-400.0,0.00025091,2]
[383641203,1757057456108,-400.0,0.00025091,2]
[383641204,1757057456118,-415.84120452,0.00025091,2]
[383641205,1757057456128,-400.0,0.00025091,2]
[383641206,1757057456137,-400.0,0.00025091,2]
[383641207,1757057456147,-400.0,0.00025091,2]
[383641208,1757057456156,-400.0,0.00025091,2]
[383641209,1757057456166,-403.82758838,0.00025091,2]
[383641210,1757057456175,-400.0,0.00025091,2]
[383641211,1757057456185,-400.0,0.00025091,2]
[383641212,1757057456195,-401.71286161,0.00025091,2]
[383641213,1757057456204,-400.0,0.00025091,2]
[383641214,1757057456214,-402.1215454,0.00025091,2]
[383641215,1757057456223,-400.0,0.00025091,2]
[383641216,1757057456233,-400.0,0.00025091,2]
[383641217,1757057456243,-400.0,0.00025091,2]
[383641218,1757057456252,-500.0,0.00025091,2]
[383641219,1757057456263,-21992.5643049,0.00025097,3]
[383641220,1757057456273,-22847.9898867,0.00025097,3]
[383641221,1757057456282,-500.0,0.00025098,2]
[383641222,1757057456292,-500.0,0.00025098,2]
[383641223,1757057456301,-500.0,0.00025098,2]
[383641224,1757057456311,-517.8243655,0.00025098,2]
[383641225,1757057456321,-200.0,0.000251,7]
[383641226,1757057456330,-827.24057742,0.00025102,2]
[383641227,1757057456343,-666.15513616,0.00025102,10]
[383641228,1757057456352,-22847.9898867,0.00025102,3]
[383641229,1757057456362,-891.70787896,0.00025106,3]
[383641230,1757057456372,-613.42044691,0.00025108,2]
[383641231,1757057456381,-926.286,0.00025112,2]
[383641232,1757057456392,-3394.823,0.00025112,2]
[383641233,1757057456402,-625.336,0.00025112,2]
[383641234,1757057456411,-316.508,0.00025112,2]
[383641235,1757057456421,-256.124,0.00025112,2]
[383641236,1757057456431,-1581.357,0.00025112,2]
[383641237,1757057456441,-150.0,0.00025117,2]
[383641238,1757057456450,-150.0,0.00025117,2]
[383641239,1757057456460,-150.0,0.00025117,2]
[383641240,1757057456470,-150.0,0.00025117,2]
[383641241,1757057456480,-150.0,0.00025117,2]
[383641242,1757057456491,-150.0,0.00025117,2]
[383641243,1757057456501,-150.0,0.00025117,2]
[383641244,1757057456510,-165.55187303,0.00025117,2]
[383641245,1757057456520,-150.0,0.00025117,2]
[383641246,1757057456530,-150.22293363,0.00025117,2]
[383641247,1757057456540,-150.0,0.00025117,2]
[383641248,1757057456551,-150.0,0.00025117,2]
[383641249,1757057456561,-150.0,0.00025117,2]
[383641250,1757057456571,-150.0,0.00025117,2]
[383641251,1757057456582,-150.0,0.00025117,2]
[383641252,1757057456592,-150.0,0.00025117,2]
[383641253,1757057456603,-150.0,0.00025117,2]
[383641254,1757057456612,-203.33307733,0.00025117,2]
[383641255,1757057456622,-200.0,0.00025117,2]
[383641256,1757057456632,-150.0,0.00025117,2]
[383641257,1757057456642,-294.45,0.00025117,2]
[383641258,1757057456652,-150.0,0.00025117,2]
[383641259,1757057456662,-150.0,0.00025117,2]
[383641260,1757057456671,-150.0,0.00025117,2]
[383641261,1757057456681,-150.0,0.00025117,2]
[383641262,1757057456691,-150.0,0.00025117,2]
[383641263,1757057456701,-501.2454763,0.0002513,14]
[383641264,1757057456711,-150.445,0.00025132,2]
[383641265,1757057456721,-204.597,0.00025132,2]
[383641266,1757057456731,-297.574,0.00025132,2]
[383641267,1757057456741,-221.643,0.00025132,2]
[383641268,1757057456751,-150.358,0.00025132,2]
[383641269,1757057456760,-294.088,0.00025132,2]
[383641270,1757057456771,-151.169,0.00025132,2]
[383641271,1757057456780,-151.0,0.00025132,2]
[383641272,1757057456791,-168.0,0.00025162,2]
[383641273,1757057456800,-1000.0,0.00025164,2]
[383641274,1757057456811,-21992.5643049,0.00025171,3]
[383641275,1757057456821,-22847.9898867,0.00025172,3]
[383641276,1757057456831,-21992.5643049,0.00025181,3]
[383641277,1757057456841,-500.0,0.00025191,2]
[383641278,1757057456851,-500.0,0.00025191,2]
[383641279,1757057456861,-500.0,0.00025191,2]
[383641280,1757057456871,-265.06516638,0.00025191,2]
[383641281,1757057456881,-1000.0,0.00025195,2]
[383641282,1757057456891,-150.0,0.00025195,2]
[383641283,1757057456905,-1073.09467,0.000252,2]
[383641284,1757057456915,-1059.8279,0.00025202,2]
[383641285,1757057456928,-1425.0,0.00025211,2]
[383641286,1757057456938,-21992.5643049,0.00025222,3]
[383641287,1757057456948,-22847.9898867,0.00025222,3]
[383641288,1757057456958,-238.97,0.00025223,2]
[383641289,1757057456967,-150.0,0.00025228,2]
[383641290,1757057456976,-5329.50674651,0.00025231,3]
[383641291,1757057457626,-400.0,0.00025069,2]
[383641292,1757057457635,-251.52351934,0.00025069,2]
[383641293,1757057457646,-148.47648066,0.00025069,2]
[383641294,1757057457655,-400.0,0.0002507,2]
[383641295,1757057457665,-400.0,0.0002508,2]
[383641296,1757057457675,-575.54192929,0.00025087,2]
[383641297,1757057457685,-645.26362746,0.00025231,3]
[383641298,1757057457704,-16873.21951273,0.00025231,3]
[383641299,1757057457714,-150.0,0.00025253,2]
[383641300,1757057457724,-151.21128972,0.00025254,2]
[383641301,1757057457734,-22847.9898867,0.00025257,3]
[383641302,1757057457743,-267.46074303,0.0002526,2]
[383641303,1757057457753,-16146.04008302,0.00025268,3]
[383641327,1757058115572,154.75,0.00013699,2]
[383641329,1757058281935,211.77,0.00012082,2]
[383641332,1757058372475,7429.0,0.00030137,120]
[383641336,1757058632342,-270.55,0.00024164,2]
[383641337,1757058632352,-147.1754946,0.00024286,2]
[383641338,1757058632364,-32.0445054,0.00024286,2]
[383641339,1757058632373,-414.0,0.00024658,2]
[383641340,1757058632382,-184.2654946,0.000248,2]
[383641341,1757058632458,-11.7345054,0.000248,2]
[383641342,1757058632468,-400.0,0.000248,9]
[383641343,1757058632478,-359.07329959,0.00024898,2]
[383641344,1757058632488,-1200.0,0.00024899,2]
[383641345,1757058632499,-900.0,0.000249,9]
[383641346,1757058632508,-291.31493261,0.000249,2]
[383641347,1757058632521,-15.49506739,0.000249,2]
[383641348,1757058632534,-3991.6414854,0.000249,2]
[383641349,1757058632543,-154.75,0.00024907,2]
[383641350,1757058632554,-257.91778498,0.00024954,2]
[383641351,1757058632563,-149.57342973,0.00024968,2]
[383641352,1757058632576,-1981.18984,0.00024968,2]
[383641353,1757058632589,-421.62969973,0.00024968,2]
[383641354,1757058632604,-1695.80420717,0.00024968,2]
[383641355,1757058632613,-53.08110083,0.00024968,2]
[383641356,1757058632625,-5008.33988712,0.00024968,2]
[383641357,1757058632634,-384.1828528,0.00024969,2]
[383641358,1757058632643,-7377.27916205,0.00024969,2]
[383641359,1757058632662,-82532.64544147,0.00024969,2]
[383641360,1757058632674,-345.36759648,0.00024969,2]
[383641362,1757058632683,-1000.0,0.00024969,2]
[383641364,1757058632693,-2500.0,0.00024969,2]
[383641366,1757058632702,-2256.0276,0.00024969,2]
[383641368,1757058632711,-161.50033241,0.0002497,2]
[383641370,1757058632721,-159.72155298,0.00024973,2]
[383641372,1757058632730,-151.0,0.00025,7]
[383641374,1757058632739,-715.39644,0.0002501,2]
[383641377,1757058632749,-514.736181,0.00025022,2]
[383641380,1757058632758,-212.63008182,0.00025022,2]
[383641383,1757058632767,-160.0,0.00025022,2]
[383641385,1757058632776,-162.07,0.00025033,2]
[383641387,1757058632785,-150.0,0.00025044,2]
[383641389,1757058632794,-797.0401245,0.00025046,2]
[383641391,1757058632803,-1015.8354528,0.00025047,2]
[383641392,1757058632812,-1234.63078109,0.00025049,2]
[383641393,1757058632822,-1453.42610938,0.00025051,2]
[383641394,1757058632831,-1672.22143768,0.00025052,2]
[383641395,1757058632841,-151.0,0.00025054,2]
[383641396,1757058632850,-1891.01676597,0.00025054,2]
[383641397,1757058632859,-2109.81209427,0.00025056,2]
[383641398,1757058632869,-2328.60742256,0.00025057,2]
[383641399,1757058632878,-173.83,0.00025058,2]
[383641400,1757058632888,-2547.40275086,0.00025059,2]
[383641401,1757058632898,-3010.69135387,0.00025059,3]
[383641402,1757058632907,-1229.94134182,0.00025059,3]
[383641497,1757058640705,-19731.63583718,0.00025059,3]
[383641498,1757058640715,-484.4,0.00025059,2]
[383641499,1757058640724,-155.942,0.00025067,2]
[383641500,1757058640733,-400.0,0.00025068,2]
[383641501,1757058640743,-471.51034967,0.00025068,2]
[383641502,1757058640752,-400.0,0.00025068,2]
[383641503,1757058640762,-400.0,0.00025068,2]
[383641504,1757058640771,-400.0,0.00025068,2]
[383641505,1757058640781,-408.91073457,0.00025068,2]
[383641506,1757058640790,-400.0,0.00025068,2]
[383641507,1757058640800,-400.0,0.00025068,2]
[383641508,1757058640809,-400.0,0.00025068,2]
[383641509,1757058640819,-400.0,0.00025068,2]
[383641510,1757058640829,-400.0,0.00025068,2]
[383641511,1757058640839,-400.0,0.00025068,2]
[383641512,1757058640848,-400.0,0.00025068,2]
[383641513,1757058640859,-412.37883283,0.00025068,2]
[383641514,1757058640868,-190.69717866,0.00025068,2]
[383641515,1757058640878,-400.0,0.00025068,2]
[383641516,1757058640887,-400.0,0.00025068,2]
[383641517,1757058640897,-400.0,0.00025068,2]
[383641518,1757058640907,-415.36810135,0.00025068,2]
[383641519,1757058640918,-400.0,0.00025068,2]
[383641520,1757058640928,-400.0,0.00025068,2]
[383641521,1757058640938,-405.50477612,0.00025068,2]
[383641522,1757058640948,-400.0,0.00025068,2]
[383641523,1757058640959,-400.0,0.00025068,2]
[383641525,1757058640968,-399.4756714,0.00025068,2]
[383641526,1757058640977,-400.0,0.00025068,2]
[383641528,1757058640986,-400.0,0.00025068,2]
[383641531,1757058640996,-296.76126309,0.00025068,2]
[383641533,1757058641006,-400.0,0.00025068,2]
[383641534,1757058641016,-400.0,0.00025068,2]
[383641536,1757058641026,-400.0,0.00025068,2]
[383641538,1757058641035,-400.0,0.00025068,2]
[383641540,1757058641045,-400.0,0.00025068,2]
[383641542,1757058641055,-400.0,0.00025068,2]
[383641545,1757058641065,-400.0,0.00025068,2]
[383641547,1757058641074,-407.32080497,0.00025068,2]
[383641548,1757058641083,-162.65,0.00025068,2]
[383641551,1757058641093,-422.13704719,0.00025068,2]
[383641553,1757058641103,-400.0,0.00025068,2]
[383641554,1757058641112,-408.45736978,0.00025068,2]
[383641557,1757058641122,-408.76455546,0.00025068,2]
[383641559,1757058641131,-400.0,0.00025068,2]
[383641561,1757058641140,-451.87,0.00025068,2]
[383641562,1757058641149,-413.80256235,0.00025068,2]
[383641565,1757058641159,-543.28,0.00025068,2]
[383641567,1757058641168,-400.0,0.00025068,2]
[383641568,1757058641177,-480.9,0.00025068,2]
[383641571,1757058641186,-400.0,0.00025068,2]
[383641572,1757058641195,-400.0,0.00025068,2]
[383641575,1757058641205,-400.0,0.00025068,2]
[383641577,1757058641214,-400.0,0.00025068,2]
[383641579,1757058641224,-400.0,0.00025068,2]
[383641581,1757058641233,-400.0,0.00025068,2]
[383641582,1757058641242,-400.0,0.00025068,2]
[383641584,1757058641251,-400.0,0.00025068,2]
[383641589,1757058641467,-400.0,0.00025068,2]
[383641590,1757058641477,-215.33102362,0.00025068,2]
[383641606,1757058646259,-184.66897638,0.00025068,2]
[383641607,1757058646269,-176.21391627,0.00025068,2]
[383641608,1757058646278,-400.0,0.00025068,2]
[383641609,1757058646288,-265.95505638,0.00025068,2]
[383641610,1757058646300,-134.04494362,0.00025068,2]
[383641611,1757058646309,-400.0,0.00025068,2]
[383641612,1757058646318,-400.0,0.00025068,2]
[383641613,1757058646327,-400.0,0.00025068,2]
[383641614,1757058646336,-400.0,0.00025068,2]
[383641615,1757058646345,-400.0,0.00025068,2]
[383641616,1757058646354,-66.51161636,0.00025068,2]
[383641617,1757058646575,-333.48838364,0.00025068,2]
[383641618,1757058646585,-327.74521635,0.00025068,2]
[383641661,1757059148913,254.37463207,0.0003,120]
[383641683,1757059665201,154.76,0.00013699,2]
[383641691,1757059831605,-150.0,0.00022759,4]
[383641692,1757059831615,-150.0,0.00022759,4]
[383641693,1757059831624,-150.0,0.00022759,4]
[383641694,1757059831634,-150.0,0.00022759,4]
[383641695,1757059831643,-164.82,0.00024086,2]
[383641696,1757059831653,-151.64,0.00024128,2]
[383641697,1757059831663,-273.29,0.00024141,2]
[383641698,1757059831673,-338.631,0.00024283,2]
[383641699,1757059831682,-896.0,0.00024283,2]
[383641700,1757059831692,-400.0,0.000247,9]
[383641701,1757059831701,-883.69684789,0.000248,9]
[383641702,1757059831731,-16.30315211,0.000248,9]
[383641703,1757059831740,-812.66104,0.0002482,2]
[383641704,1757059831750,-609.12696739,0.00024832,2]
[383641705,1757059831759,-1095.0,0.00024897,2]
[383641706,1757059831768,-300.0,0.00024897,2]
[383641707,1757059831778,-180.0,0.00024897,2]
[383641708,1757059831787,-1335.40072951,0.000249,9]
[383641709,1757059831798,-64.59927049,0.000249,9]
[383641710,1757059831807,-435.40072951,0.000249,2]
[383641711,1757059831822,-1699.453841,0.000249,2]
[383641712,1757059831832,-608.48401838,0.000249,2]
[383641713,1757059831847,-418.54375762,0.000249,2]
[383641714,1757059831867,-1065.83830106,0.000249,2]
[383641715,1757059831877,-2.98926569,0.00024932,7]
[383641716,1757059831888,-182.01073431,0.00024932,7]
[383641717,1757059831897,-257.91778498,0.00024953,2]
[383641718,1757059831907,-154.19559549,0.00024966,2]
[383641719,1757059831916,-356.21633005,0.00024967,2]
[383641720,1757059831929,-280.0,0.00025,7]
[383641721,1757059831939,-185.0,0.00025,7]
[383641722,1757059831948,-162.04,0.00025012,2]
[383641723,1757059831958,-151.0,0.00025053,2]
[383641724,1757059831970,-251.35130971,0.00025057,2]
[383641725,1757059831980,-454.13,0.00025057,2]
[383641726,1757059831990,-98.85156339,0.00025058,3]
[383641727,1757059832003,-15965.32844838,0.00025058,3]
[383641728,1757059832018,-652.556193,0.00025058,3]
[383641730,1757059832029,-283.0355,0.00025058,3]
[383641732,1757059832041,-341.508,0.00025058,3]
[383641751,1757059832255,-22143.8414,0.00025058,3]
[383641752,1757059832270,-316.20299965,0.00025058,3]
[383641755,1757059837509,-1175.0,0.00024283,2]
[383641756,1757059837520,-171.47635145,0.00024896,2]
[383641757,1757059837530,-500.0,0.00024896,2]
[383641758,1757059837540,-500.0,0.00024896,2]
[383641759,1757059837550,-280.00645983,0.00024896,2]
[383641760,1757059837559,-2563.51718872,0.00025058,3]
[383641761,1757059837572,-269.89749788,0.00025058,3]
[383641762,1757059837654,-62199.44437098,0.00025058,3]
[383641763,1757059837667,-2000.0,0.00025059,3]
[383641764,1757059837676,-2000.0,0.00025059,3]
[383641765,1757059837687,-2000.0,0.00025059,3]
[383641766,1757059837697,-259.35830577,0.00025059,3]
[383641767,1757059837710,-1740.64169423,0.00025059,3]
[383641768,1757059837719,-2000.0,0.00025059,3]
[383641769,1757059837730,-717.545706,0.00025066,4]
[383641782,1757059839890,-179.87,0.00022324,2]
[383641783,1757059839901,-158.58,0.00022324,2]
[383641784,1757059839910,-179.87,0.00024241,2]
[383641785,1757059839920,-26.92603996,0.00025066,4]
[383641786,1757059839935,-4.92250984,0.00025066,2]
[383641787,1757059839947,-150.07749016,0.00025066,2]
[383641788,1757059839956,-400.0,0.00025066,2]
[383641789,1757059839967,-400.0,0.00025066,2]
[383641790,1757059839977,-400.0,0.00025066,2]
[383641791,1757059839986,-400.0,0.00025066,2]
[383641792,1757059839996,-400.0,0.00025066,2]
[383641793,1757059840007,-400.0,0.00025066,2]
[383641794,1757059840016,-400.0,0.00025066,2]
[383641795,1757059840025,-400.0,0.00025066,2]
[383641796,1757059840035,-400.0,0.00025066,2]
[383641797,1757059840044,-400.0,0.00025066,2]
[383641798,1757059840053,-323.21437186,0.00025066,2]
[383641799,1757059840064,-116.26895232,0.00025066,2]
[383641800,1757059840074,-400.0,0.00025066,2]
[383641801,1757059840083,-400.0,0.00025066,2]
[383641802,1757059840092,-461.99259799,0.00025066,2]
[383641803,1757059840102,-400.0,0.00025066,2]
[383641804,1757059840111,-400.0,0.00025066,2]
[383641806,1757059840124,-400.0,0.00025066,2]
[383641807,1757059840134,-400.0,0.00025066,2]
[383641808,1757059840144,-400.0,0.00025066,2]
[383641809,1757059840153,-400.0,0.00025066,2]
[383641810,1757059840163,-526.57255925,0.00025066,2]
[383641811,1757059840173,-400.0,0.00025066,2]
[383641812,1757059840182,-409.80232839,0.00025066,2]
[383641813,1757059840192,-400.0,0.00025066,2]
[383641814,1757059840202,-433.50527389,0.00025066,2]
[383641815,1757059840211,-402.63535661,0.00025066,2]
[383641816,1757059840221,-390.34889052,0.00025066,2]
[383641817,1757059840231,-400.0,0.00025066,2]
[383641818,1757059840241,-400.0,0.00025066,2]
[383641819,1757059840250,-400.0,0.00025066,2]
[383641820,1757059840260,-544.1942093,0.00025066,2]
[383641821,1757059840270,-427.56783785,0.00025066,2]
[383641822,1757059840280,-400.0,0.00025066,2]
[383641823,1757059840290,-192.41754747,0.00025066,2]
[383641824,1757059840300,-400.0,0.00025066,2]
[383641825,1757059840309,-400.0,0.00025066,2]
[383641826,1757059840318,-400.0,0.00025066,2]
[383641827,1757059840328,-400.0,0.00025066,2]
[383641828,1757059840338,-400.0,0.00025066,2]
[383641829,1757059840347,-370.78062203,0.00025066,2]
[383641830,1757059840357,-400.0,0.00025066,2]
[383641831,1757059840367,-276.54764887,0.00025066,2]
[383641832,1757059840377,-400.0,0.00025066,2]
[383641833,1757059840387,-400.0,0.00025066,2]
[383641834,1757059840396,-408.43480378,0.00025066,2]
[383641835,1757059840406,-454.18745071,0.00025066,2]
[383641836,1757059840416,-416.12733328,0.00025066,2]
[383641837,1757059840427,-400.0,0.00025066,2]
[383641838,1757059840436,-400.0,0.00025066,2]
[383641839,1757059840446,-449.71816115,0.00025066,2]
[383641840,1757059840455,-332.33228335,0.00025066,2]
[383641841,1757059840465,-403.28180682,0.00025066,2]
[383641842,1757059840474,-11660.78433642,0.00025067,3]
[383641843,1757059840487,-22433.24920541,0.00025067,3]
[383642090,1757059845541,-158.58,0.00024241,2]
[383642092,1757059845551,-428.32,0.00025066,2]
[383642094,1757059845561,-433.27021451,0.00025066,2]
[383642096,1757059845570,-500.0,0.00025066,2]
[383642098,1757059845579,-400.0,0.00025066,2]
[383642100,1757059845588,-487.32978518,0.00025067,3]
[383642118,1757059845750,-26288.41267777,0.00025067,3]
[383642120,1757059845760,-400.0,0.00025067,2]
[383642122,1757059845769,-400.0,0.00025067,2]
[383642124,1757059845779,-400.0,0.00025067,2]
[383642126,1757059845788,-400.0,0.00025067,2]
[383642128,1757059845797,-400.0,0.00025067,2]
[383642130,1757059845807,-400.0,0.00025067,2]
[383642132,1757059845816,-400.0,0.00025067,2]
[383642134,1757059845826,-400.0,0.00025067,2]
[383642136,1757059845835,-400.0,0.00025067,2]
[383642138,1757059845844,-315.59206912,0.00025067,2]
[383642140,1757059845853,-400.0,0.00025067,2]
[383642142,1757059845862,-400.0,0.00025067,2]
[383642144,1757059845871,-400.0,0.00025067,2]
[383642146,1757059845881,-401.93945833,0.00025067,2]
[383642148,1757059845890,-400.0,0.00025067,2]
[383642150,1757059845900,-400.0,0.00025067,2]
[383642152,1757059845909,-400.0,0.00025067,2]
[383642154,1757059845920,-400.0,0.00025067,2]
[383642156,1757059845930,-400.0,0.00025067,2]
[383642158,1757059845941,-400.0,0.00025067,2]
[383642160,1757059845950,-400.0,0.00025067,2]
[383642162,1757059845960,-400.0,0.00025067,2]
[383642164,1757059845971,-400.0,0.00025067,2]
[383642166,1757059845980,-400.0,0.00025067,2]
[383642168,1757059845989,-400.0,0.00025067,2]
[383642170,1757059845998,-400.0,0.00025067,2]
[383642172,1757059846012,-400.0,0.00025067,2]
[383642174,1757059846022,-400.0,0.00025067,2]
[383642176,1757059846032,-464.77450718,0.00025067,2]
[383642178,1757059846041,-400.0,0.00025067,2]
[383642180,1757059846050,-400.0,0.00025067,2]
[383642182,1757059846061,-400.0,0.00025067,2]
[383642184,1757059846071,-400.0,0.00025067,2]
[383642186,1757059846081,-402.97638257,0.00025067,2]
[383642188,1757059846091,-400.0,0.00025067,2]
[383642190,1757059846103,-400.0,0.00025067,2]
[383642192,1757059846117,-400.0,0.00025067,2]
[383642194,1757059846127,-400.0,0.00025067,2]
[383642197,1757059846137,-400.0,0.00025067,2]
[383642199,1757059846147,-400.0,0.00025067,2]
[383642201,1757059846156,-400.0,0.00025067,2]
[383642203,1757059846167,-400.0,0.00025067,2]
[383642205,1757059846177,-400.0,0.00025067,2]
[383642207,1757059846186,-400.0,0.00025067,2]
[383642209,1757059846198,-400.0,0.00025067,2]
[383642211,1757059846207,-400.0,0.00025067,2]
[383642213,1757059846217,-400.0,0.00025067,2]
[383642215,1757059846226,-400.0,0.00025067,2]
[383642217,1757059846236,-400.0,0.00025067,2]
[383642219,1757059846245,-400.0,0.00025067,2]
[383642221,1757059846255,-400.0,0.00025067,2]
[383642223,1757059846264,-400.0,0.00025067,2]
[383642225,1757059846273,-400.0,0.00025067,2]
[383642227,1757059846282,-247.27935422,0.00025067,2]
[383642229,1757059846291,-400.0,0.00025067,2]
[383642231,1757059846301,-400.0,0.00025067,2]
[383642233,1757059846311,-400.0,0.00025067,2]
[383642235,1757059846321,-475.76393515,0.00025067,2]
[383642237,1757059846331,-400.0,0.00025067,2]
[383642239,1757059846340,-400.0,0.00025067,2]
[383642241,1757059846350,-320.98445071,0.00025067,2]
[383642244,1757059846364,-79.01554929,0.00025067,2]
[383642246,1757059846375,-199.66064578,0.00025067,2]
[383642248,1757059846384,-400.0,0.00025067,2]
[383642250,1757059846394,-429.3341244,0.00025067,2]
[383642252,1757059846405,-500.0,0.00025067,2]
[383642254,1757059846415,-400.08299808,0.00025067,2]
[383642256,1757059846426,-400.0,0.00025067,2]
[383642258,1757059846435,-569.13842603,0.00025067,2]
[383642260,1757059846444,-400.0,0.00025067,2]
[383642262,1757059846454,-401.21215489,0.00025067,2]
[383642264,1757059846463,-400.0,0.00025067,2]
[383642266,1757059846473,-400.0,0.00025067,2]
[383642268,1757059846483,-400.0,0.00025067,2]
[383642270,1757059846492,-400.0,0.00025067,2]
[383642272,1757059846501,-401.07409821,0.00025067,2]
[383642274,1757059846512,-183.205314,0.00025067,2]
[383642276,1757059846521,-546.13978655,0.00025067,2]
[383642278,1757059846530,-158.382042,0.00025067,2]
[383642280,1757059846540,-175.135591,0.00025067,2]
[383642282,1757059846549,-400.0,0.00025067,2]
[383642284,1757059846559,-520.97532212,0.00025067,2]
[383642286,1757059846568,-400.0,0.00025067,2]
[383642288,1757059846579,-400.0,0.00025067,2]
[383642290,1757059846588,-400.0,0.00025067,2]
[383642292,1757059846598,-358.77875853,0.00025067,2]
[383642294,1757059846608,-400.0,0.00025067,2]
[383642296,1757059846618,-400.0,0.00025067,2]
[383642298,1757059846628,-400.0,0.00025067,2]
[383642300,1757059846637,-400.0,0.00025067,2]
[383642302,1757059846647,-400.0,0.00025067,2]
[383642304,1757059846656,-215.73237953,0.00025067,2]
[383642306,1757059846667,-400.0,0.00025067,2]
[383642308,1757059846676,-400.0,0.00025067,2]
[383642310,1757059846686,-428.76066213,0.00025067,2]
[383642312,1757059846695,-465.44151896,0.00025067,2]
[383642314,1757059846704,-400.0,0.00025067,2]
[383642316,1757059846714,-400.0,0.00025067,2]